[Event "Late-Titled-Tuesday-Blitz-January-16-2024"]
[Site "Chess.com"]
[Date "2024.01.16"]
[Round "5"]
[White "Harsha_Bharathakoti"]
[Black "Jagerrmeisterr"]
[Result "1-0"]
[WhiteElo "2947"]
[BlackElo "2708"]
[TimeControl "180+1"]
[EndTime "14:53:35 PST"]
[Termination "Harsha_Bharathakoti won by resignation"]

1. e4 {[%clk 0:03:00.9]} 1... c6 {[%clk 0:02:58.9]} 2. Nc3 {[%clk 0:02:57.3]}
2... d5 {[%clk 0:02:58.8]} 3. Qf3 {[%clk 0:02:57.4]} 3... e6 {[%clk 0:02:54.2]}
4. d4 {[%clk 0:02:56.5]} 4... Nd7 {[%clk 0:02:47.6]} 5. Bd3 {[%clk 0:02:54.1]}
5... b5 {[%clk 0:02:21]} 6. exd5 {[%clk 0:02:41.6]} 6... exd5 {[%clk 0:02:21]}
7. Bf4 {[%clk 0:02:41.3]} 7... b4 {[%clk 0:02:18.1]} 8. Nce2 {[%clk 0:02:39.2]}
8... Ngf6 {[%clk 0:02:09.6]} 9. Ng3 {[%clk 0:02:27.5]} 9... Qa5 {[%clk
0:01:38.3]} 10. Qe3+ {[%clk 0:02:14.3]} 10... Kd8 {[%clk 0:01:36.9]} 11. N1e2
{[%clk 0:02:10.6]} 11... g6 {[%clk 0:01:25.4]} 12. O-O {[%clk 0:02:04.2]} 12...
Be7 {[%clk 0:01:13.9]} 13. Nc1 {[%clk 0:01:49.8]} 13... Re8 {[%clk 0:00:55.4]}
14. Nb3 {[%clk 0:01:49.2]} 14... Qb6 {[%clk 0:00:55.6]} 15. Qf3 {[%clk
0:01:42.5]} 15... a5 {[%clk 0:00:53.2]} 16. c4 {[%clk 0:01:38.7]} 16... bxc3
{[%clk 0:00:43]} 17. bxc3 {[%clk 0:01:39]} 17... a4 {[%clk 0:00:43.6]} 18. Nd2
{[%clk 0:01:36.7]} 18... Ba6 {[%clk 0:00:37.5]} 19. Rab1 {[%clk 0:01:35.6]}
19... Qa5 {[%clk 0:00:35.9]} 20. c4 {[%clk 0:01:35.7]} 20... h5 {[%clk
0:00:32.5]} 21. Rfc1 {[%clk 0:01:29.7]} 21... h4 {[%clk 0:00:32.1]} 22. Ngf1
{[%clk 0:01:25.4]} 22... Nh5 {[%clk 0:00:32.4]} 23. Be3 {[%clk 0:01:18]} 23...
f5 {[%clk 0:00:26.7]} 24. Bxf5 {[%clk 0:00:51.8]} 24... Rf8 {[%clk 0:00:21.2]}
25. Qg4 {[%clk 0:00:52]} 25... Rxf5 {[%clk 0:00:19.1]} 26. Qxg6 {[%clk
0:00:52.6]} 26... dxc4 {[%clk 0:00:19.8]} 27. Nxc4 {[%clk 0:00:53.2]} 27... Bxc4
{[%clk 0:00:20.2]} 28. Rxc4 {[%clk 0:00:54.1]} 28... Qd5 {[%clk 0:00:20.9]} 29.
Rbc1 {[%clk 0:00:51.1]} 29... Nhf6 {[%clk 0:00:20]} 30. Rxc6 {[%clk 0:00:43.4]}
30... Nf8 {[%clk 0:00:20.3]} 31. Qg7 {[%clk 0:00:36.9]} 31... h3 {[%clk
0:00:20.9]} 32. gxh3 {[%clk 0:00:32.3]} 32... Nh5 {[%clk 0:00:19.1]} 33. Qg4
{[%clk 0:00:28.6]} 33... Nf6 {[%clk 0:00:18.7]} 34. Qe2 {[%clk 0:00:27.5]} 34...
Rh5 {[%clk 0:00:17.3]} 35. Ng3 {[%clk 0:00:19.6]} 35... Rxh3 {[%clk 0:00:17.5]}
36. Bf4 {[%clk 0:00:20.2]} 36... Ng6 {[%clk 0:00:15.3]} 37. Bc7+ {[%clk
0:00:18.5]} 37... Ke8 {[%clk 0:00:15.4]} 38. Rxf6 {[%clk 0:00:17.6]} 38... Nh4
{[%clk 0:00:16]} 39. Ne4 {[%clk 0:00:04.7]} 39... Kd7 {[%clk 0:00:09.7]} 40. Bg3
{[%clk 0:00:04.6]} 40... Rc8 {[%clk 0:00:05.3]} 41. Qg4+ {[%clk 0:00:05]} 41...
Nf5 {[%clk 0:00:02.8]} 42. Rxc8 {[%clk 0:00:04.7]} 42... Bxf6 {[%clk 0:00:03.4]}
43. Nxf6+ {[%clk 0:00:04.8]} 43... Kxc8 {[%clk 0:00:03.7]} 44. Nxd5 {[%clk
0:00:05.7]} 1-0

[Event "Late-Titled-Tuesday-Blitz-January-16-2024"]
[Site "Chess.com"]
[Date "2024.01.16"]
[Round "5"]
[White "jinbojinbo"]
[Black "Durarbayli"]
[Result "0-1"]
[WhiteElo "2646"]
[BlackElo "2864"]
[TimeControl "180+1"]
[EndTime "14:53:35 PST"]
[Termination "Durarbayli won by resignation"]

1. e4 {[%clk 0:02:57.3]} 1... e5 {[%clk 0:02:59.4]} 2. Nf3 {[%clk 0:02:57.1]}
2... Nc6 {[%clk 0:03:00]} 3. Bb5 {[%clk 0:02:57.3]} 3... a6 {[%clk 0:03:00.5]}
4. Ba4 {[%clk 0:02:57.7]} 4... Nf6 {[%clk 0:03:01]} 5. O-O {[%clk 0:02:58]} 5...
Be7 {[%clk 0:03:01.6]} 6. Re1 {[%clk 0:02:58.3]} 6... b5 {[%clk 0:03:01.6]} 7.
Bb3 {[%clk 0:02:58.7]} 7... O-O {[%clk 0:03:02.3]} 8. c3 {[%clk 0:02:59.3]} 8...
d5 {[%clk 0:03:01.2]} 9. exd5 {[%clk 0:03:00.2]} 9... Nxd5 {[%clk 0:03:01.7]}
10. Nxe5 {[%clk 0:03:00.7]} 10... Nxe5 {[%clk 0:03:02.5]} 11. Rxe5 {[%clk
0:03:01.5]} 11... c6 {[%clk 0:03:03.2]} 12. d3 {[%clk 0:03:01.7]} 12... Bd6
{[%clk 0:03:02.8]} 13. Re1 {[%clk 0:03:02.1]} 13... Qh4 {[%clk 0:03:00.2]} 14.
g3 {[%clk 0:03:01.7]} 14... Qh3 {[%clk 0:03:00.5]} 15. Re4 {[%clk 0:02:57.6]}
15... Nf6 {[%clk 0:02:58.5]} 16. Rh4 {[%clk 0:02:55.8]} 16... Qf5 {[%clk
0:02:58.7]} 17. Nd2 {[%clk 0:02:45.1]} 17... Ng4 {[%clk 0:02:55.9]} 18. Qf3
{[%clk 0:02:28]} 18... Be7 {[%clk 0:02:36.9]} 19. Rxg4 {[%clk 0:01:38.6]} 19...
Qxg4 {[%clk 0:02:23.9]} 20. Qxc6 {[%clk 0:01:38.4]} 20... Bf5 {[%clk 0:02:05.2]}
21. d4 {[%clk 0:01:25.7]} 21... Rad8 {[%clk 0:01:52.7]} 22. Qf3 {[%clk
0:01:24.5]} 22... Qg6 {[%clk 0:01:50.7]} 23. Nf1 {[%clk 0:01:14.5]} 23... Be4
{[%clk 0:01:42.5]} 24. Qe2 {[%clk 0:01:14.6]} 24... Rfe8 {[%clk 0:01:40.7]} 25.
f3 {[%clk 0:01:13.1]} 25... Bb7 {[%clk 0:01:32.8]} 26. Qf2 {[%clk 0:01:11.1]}
26... Qf5 {[%clk 0:01:11.1]} 27. Kg2 {[%clk 0:00:50]} 27... Bd6 {[%clk
0:00:59.1]} 28. Be3 {[%clk 0:00:46.2]} 28... h5 {[%clk 0:00:52.8]} 29. h4 {[%clk
0:00:41.5]} 29... Bb8 {[%clk 0:00:46.6]} 30. Bc2 {[%clk 0:00:38.2]} 30... Qd5
{[%clk 0:00:41.2]} 31. a4 {[%clk 0:00:32.5]} 31... Re6 {[%clk 0:00:38.7]} 32.
axb5 {[%clk 0:00:30.4]} 32... Qxb5 {[%clk 0:00:26.5]} 33. b3 {[%clk 0:00:25.3]}
33... Rde8 {[%clk 0:00:16.9]} 34. c4 {[%clk 0:00:25.6]} 34... Qb6 {[%clk
0:00:16]} 35. Re1 {[%clk 0:00:24.7]} 35... Qd8 {[%clk 0:00:07.7]} 36. d5 {[%clk
0:00:24.5]} 36... Re5 {[%clk 0:00:08.1]} 37. Be4 {[%clk 0:00:20.8]} 37... f5
{[%clk 0:00:07.7]} 38. Bc2 {[%clk 0:00:20.5]} 38... f4 {[%clk 0:00:08.2]} 39.
Bd2 {[%clk 0:00:20.4]} 39... Rxe1 {[%clk 0:00:08.2]} 40. Bxe1 {[%clk 0:00:21.3]}
40... fxg3 {[%clk 0:00:08.6]} 41. Nxg3 {[%clk 0:00:17]} 41... Qxh4 {[%clk
0:00:09.2]} 42. Be4 {[%clk 0:00:17.3]} 42... Bc8 {[%clk 0:00:08.2]} 43. Nf5
{[%clk 0:00:16.7]} 43... Qg5+ {[%clk 0:00:08]} 44. Kf1 {[%clk 0:00:06.7]} 44...
Bxf5 {[%clk 0:00:08.1]} 45. Bd2 {[%clk 0:00:07.2]} 45... Qg6 {[%clk 0:00:08.2]}
0-1

[Event "Late-Titled-Tuesday-Blitz-January-16-2024"]
[Site "Chess.com"]
[Date "2024.01.16"]
[Round "5"]
[White "Mr_November18"]
[Black "FredddieCroderg"]
[Result "0-1"]
[WhiteElo "2054"]
[BlackElo "2352"]
[TimeControl "180+1"]
[EndTime "14:53:36 PST"]
[Termination "FredddieCroderg won on time"]

1. e4 {[%clk 0:02:59]} 1... c6 {[%clk 0:02:41]} 2. d4 {[%clk 0:02:55.6]} 2... d5
{[%clk 0:02:41]} 3. f3 {[%clk 0:02:55]} 3... Qb6 {[%clk 0:02:39.5]} 4. Nc3
{[%clk 0:02:54.1]} 4... dxe4 {[%clk 0:02:38.5]} 5. Nxe4 {[%clk 0:02:53.2]} 5...
Bf5 {[%clk 0:02:37.3]} 6. Ne2 {[%clk 0:02:38.3]} 6... Bxe4 {[%clk 0:02:14.6]} 7.
fxe4 {[%clk 0:02:37.7]} 7... e5 {[%clk 0:02:14.5]} 8. c3 {[%clk 0:02:26.9]} 8...
Nf6 {[%clk 0:02:12.4]} 9. Ng3 {[%clk 0:02:19.1]} 9... Nbd7 {[%clk 0:02:08.6]}
10. Bc4 {[%clk 0:02:17]} 10... exd4 {[%clk 0:02:04.1]} 11. Qe2 {[%clk
0:01:50.2]} 11... Ne5 {[%clk 0:01:54]} 12. Bf4 {[%clk 0:01:19.6]} 12... Nxc4
{[%clk 0:01:52.3]} 13. Qxc4 {[%clk 0:01:16.9]} 13... Qxb2 {[%clk 0:01:43.3]} 14.
O-O {[%clk 0:01:08.7]} 14... Qxc3 {[%clk 0:01:41]} 15. Qa4 {[%clk 0:01:02.3]}
15... Qb4 {[%clk 0:01:24]} 16. Qd1 {[%clk 0:00:52]} 16... Bc5 {[%clk 0:01:20.4]}
17. Kh1 {[%clk 0:00:50.3]} 17... Qa3 {[%clk 0:01:11.9]} 18. Bg5 {[%clk
0:00:37.6]} 18... O-O-O {[%clk 0:01:00.5]} 19. Bxf6 {[%clk 0:00:36.5]} 19...
gxf6 {[%clk 0:00:59.8]} 20. Rb1 {[%clk 0:00:29.8]} 20... Bd6 {[%clk 0:00:49.1]}
21. Rxf6 {[%clk 0:00:20.2]} 21... Bxg3 {[%clk 0:00:40.9]} 22. Qg4+ {[%clk
0:00:18.9]} 22... Kb8 {[%clk 0:00:32.6]} 23. hxg3 {[%clk 0:00:18]} 23... Rhg8
{[%clk 0:00:27.2]} 24. Qf4+ {[%clk 0:00:17.8]} 24... Ka8 {[%clk 0:00:26.4]} 25.
Rxf7 {[%clk 0:00:17.1]} 25... Rb8 {[%clk 0:00:22]} 26. Qc7 {[%clk 0:00:15.9]}
26... Qxg3 {[%clk 0:00:19]} 27. Qxg3 {[%clk 0:00:08.3]} 27... Rxg3 {[%clk
0:00:14.2]} 28. Rxh7 {[%clk 0:00:08.2]} 28... c5 {[%clk 0:00:09.2]} 29. a4
{[%clk 0:00:09.1]} 29... d3 {[%clk 0:00:08.6]} 30. a5 {[%clk 0:00:10]} 30... c4
{[%clk 0:00:08]} 31. a6 {[%clk 0:00:10]} 31... bxa6 {[%clk 0:00:05.4]} 32. Rxb8+
{[%clk 0:00:09]} 32... Kxb8 {[%clk 0:00:05.5]} 33. Rh8+ {[%clk 0:00:09.2]} 33...
Kb7 {[%clk 0:00:03.7]} 34. Rh7+ {[%clk 0:00:10.1]} 34... Kb6 {[%clk 0:00:02.9]}
35. Rh8 {[%clk 0:00:11]} 35... Kb5 {[%clk 0:00:03.1]} 36. Kh2 {[%clk 0:00:11.9]}
36... Kb4 {[%clk 0:00:03.8]} 37. Rh5 {[%clk 0:00:12.7]} 37... Rg4 {[%clk
0:00:03.3]} 38. g3 {[%clk 0:00:11.5]} 38... Rxe4 {[%clk 0:00:03.8]} 39. Ra5
{[%clk 0:00:11.7]} 39... Re2+ {[%clk 0:00:04.7]} 40. Kg1 {[%clk 0:00:10.6]}
40... Kxa5 {[%clk 0:00:05.6]} 41. g4 {[%clk 0:00:10.6]} 41... Kb4 {[%clk
0:00:06.5]} 42. g5 {[%clk 0:00:10.3]} 42... c3 {[%clk 0:00:07.4]} 43. g6 {[%clk
0:00:10.5]} 43... c2 {[%clk 0:00:08.1]} 0-1

[Event "Late-Titled-Tuesday-Blitz-January-16-2024"]
[Site "Chess.com"]
[Date "2024.01.16"]
[Round "5"]
[White "Trovita84"]
[Black "youngdinousaur"]
[Result "1-0"]
[WhiteElo "2127"]
[BlackElo "2330"]
[TimeControl "180+1"]
[EndTime "14:53:39 PST"]
[Termination "Trovita84 won on time"]

1. e4 {[%clk 0:03:00.9]} 1... c5 {[%clk 0:02:59.5]} 2. Nf3 {[%clk 0:02:38.3]}
2... e6 {[%clk 0:02:35.2]} 3. d4 {[%clk 0:02:31.5]} 3... cxd4 {[%clk 0:02:22.1]}
4. Nxd4 {[%clk 0:02:32.4]} 4... Nf6 {[%clk 0:02:22.5]} 5. Nc3 {[%clk 0:02:18.6]}
5... Nc6 {[%clk 0:02:22.7]} 6. g3 {[%clk 0:01:50.8]} 6... d5 {[%clk 0:01:58.4]}
7. Nxc6 {[%clk 0:01:41.8]} 7... bxc6 {[%clk 0:01:57.3]} 8. Bg2 {[%clk
0:01:42.7]} 8... Be7 {[%clk 0:01:48.6]} 9. O-O {[%clk 0:01:40.2]} 9... O-O
{[%clk 0:01:47]} 10. Re1 {[%clk 0:01:01.3]} 10... Rb8 {[%clk 0:01:40.5]} 11.
exd5 {[%clk 0:00:58.9]} 11... cxd5 {[%clk 0:01:39.8]} 12. b3 {[%clk 0:00:56]}
12... Ba6 {[%clk 0:01:36.2]} 13. Bb2 {[%clk 0:00:53]} 13... Qc7 {[%clk
0:01:25.3]} 14. Ne2 {[%clk 0:00:52.3]} 14... Rbc8 {[%clk 0:01:14]} 15. Rc1
{[%clk 0:00:46.1]} 15... Rfd8 {[%clk 0:00:57.1]} 16. Nd4 {[%clk 0:00:45]} 16...
Qb6 {[%clk 0:00:52.6]} 17. h3 {[%clk 0:00:43.4]} 17... Bc5 {[%clk 0:00:46.7]}
18. a3 {[%clk 0:00:38.9]} 18... Be7 {[%clk 0:00:28.1]} 19. Kh2 {[%clk
0:00:35.1]} 19... Qc7 {[%clk 0:00:21.6]} 20. Nf3 {[%clk 0:00:28.4]} 20... Bb7
{[%clk 0:00:15.8]} 21. Ne5 {[%clk 0:00:27.6]} 21... Bd6 {[%clk 0:00:15.5]} 22.
Qe2 {[%clk 0:00:22.6]} 22... Nd7 {[%clk 0:00:15.5]} 23. Nxf7 {[%clk 0:00:17]}
23... Kxf7 {[%clk 0:00:11.2]} 24. Qxe6+ {[%clk 0:00:16.7]} 24... Kf8 {[%clk
0:00:11.9]} 25. Re3 {[%clk 0:00:09.6]} 25... Nf6 {[%clk 0:00:10.2]} 26. Rf3
{[%clk 0:00:07.7]} 26... Qf7 {[%clk 0:00:05.4]} 27. Qf5 {[%clk 0:00:05]} 27...
Re8 {[%clk 0:00:03.8]} 28. Qg5 {[%clk 0:00:03]} 28... d4 {[%clk 0:00:03.5]} 29.
Rf5 {[%clk 0:00:02.5]} 29... Bxg2 {[%clk 0:00:03.7]} 30. Kxg2 {[%clk 0:00:03.4]}
30... d3 {[%clk 0:00:03.3]} 31. Bxf6 {[%clk 0:00:03.4]} 31... gxf6 {[%clk
0:00:02.8]} 32. Rxf6 {[%clk 0:00:03.8]} 32... Be7 {[%clk 0:00:03.2]} 33. Rxf7+
{[%clk 0:00:04.1]} 33... Kxf7 {[%clk 0:00:03.3]} 34. Qf5+ {[%clk 0:00:05]} 34...
Kg8 {[%clk 0:00:03]} 35. Qxd3 {[%clk 0:00:05.3]} 35... Red8 {[%clk 0:00:03.5]}
36. Qf5 {[%clk 0:00:05.5]} 36... Bf8 {[%clk 0:00:03.7]} 37. Qe6+ {[%clk
0:00:05.8]} 37... Kh8 {[%clk 0:00:03.5]} 38. c4 {[%clk 0:00:06.4]} 38... Bg7
{[%clk 0:00:04.4]} 39. b4 {[%clk 0:00:06.6]} 1-0

[Event "Late-Titled-Tuesday-Blitz-January-16-2024"]
[Site "Chess.com"]
[Date "2024.01.16"]
[Round "5"]
[White "C_K_G"]
[Black "ritanovikova"]
[Result "0-1"]
[WhiteElo "2075"]
[BlackElo "2185"]
[TimeControl "180+1"]
[EndTime "14:53:43 PST"]
[Termination "ritanovikova won on time"]

1. e4 {[%clk 0:03:00.9]} 1... d5 {[%clk 0:02:59.3]} 2. exd5 {[%clk 0:02:59.7]}
2... Qxd5 {[%clk 0:03:00.2]} 3. Nc3 {[%clk 0:02:59.8]} 3... Qd6 {[%clk 0:02:59]}
4. d4 {[%clk 0:03:00.3]} 4... Nf6 {[%clk 0:02:58.8]} 5. Nf3 {[%clk 0:03:00.8]}
5... a6 {[%clk 0:02:58.4]} 6. Bc4 {[%clk 0:03:01.2]} 6... Nc6 {[%clk 0:02:55.8]}
7. h3 {[%clk 0:02:59.9]} 7... Bf5 {[%clk 0:02:54.6]} 8. O-O {[%clk 0:02:58.8]}
8... O-O-O {[%clk 0:02:53.4]} 9. Be3 {[%clk 0:02:50.5]} 9... e6 {[%clk
0:02:50.2]} 10. Qe2 {[%clk 0:02:43.2]} 10... Nb4 {[%clk 0:02:44.4]} 11. Rfc1
{[%clk 0:02:22.7]} 11... h6 {[%clk 0:02:41.2]} 12. Ne5 {[%clk 0:02:18.3]} 12...
Qe7 {[%clk 0:01:58.8]} 13. a3 {[%clk 0:02:14.4]} 13... Nbd5 {[%clk 0:01:58.4]}
14. Bxa6 {[%clk 0:02:06.5]} 14... Nd7 {[%clk 0:01:28.4]} 15. Bxb7+ {[%clk
0:01:59.6]} 15... Kxb7 {[%clk 0:01:24.6]} 16. Qb5+ {[%clk 0:01:56.1]} 16... N7b6
{[%clk 0:01:24.5]} 17. Nc6 {[%clk 0:01:21.4]} 17... Qd7 {[%clk 0:01:16.3]} 18.
Na5+ {[%clk 0:01:15.2]} 18... Ka7 {[%clk 0:01:04.2]} 19. Nc6+ {[%clk 0:01:06.1]}
19... Kb7 {[%clk 0:01:04]} 20. Nxd8+ {[%clk 0:00:58.4]} 20... Qxd8 {[%clk
0:01:03]} 21. Na4 {[%clk 0:00:50.9]} 21... Qd7 {[%clk 0:00:59.5]} 22. Qa5 {[%clk
0:00:46.2]} 22... Qxa4 {[%clk 0:00:56.4]} 23. Qe1 {[%clk 0:00:42.6]} 23... Bxc2
{[%clk 0:00:41.5]} 24. Qd2 {[%clk 0:00:34.4]} 24... Bb3 {[%clk 0:00:41.3]} 25.
Bf4 {[%clk 0:00:15.8]} 25... g5 {[%clk 0:00:37.1]} 26. Bg3 {[%clk 0:00:15.9]}
26... Bd6 {[%clk 0:00:35.7]} 27. Bxd6 {[%clk 0:00:15]} 27... cxd6 {[%clk
0:00:36.6]} 28. Qe2 {[%clk 0:00:11.2]} 28... Rc8 {[%clk 0:00:30.5]} 29. Rxc8
{[%clk 0:00:10.7]} 29... Nxc8 {[%clk 0:00:31.4]} 30. Qf3 {[%clk 0:00:11]} 30...
f5 {[%clk 0:00:29.2]} 31. Qh5 {[%clk 0:00:10.9]} 31... Qd7 {[%clk 0:00:20.1]}
32. Rc1 {[%clk 0:00:10]} 32... Ncb6 {[%clk 0:00:18.8]} 33. Qxh6 {[%clk
0:00:10.2]} 33... Qe7 {[%clk 0:00:18.6]} 34. Qh8 {[%clk 0:00:08.9]} 34... Bc4
{[%clk 0:00:16.3]} 35. b4 {[%clk 0:00:06.6]} 35... f4 {[%clk 0:00:15.2]} 36. Qg8
{[%clk 0:00:05.9]} 36... f3 {[%clk 0:00:14.7]} 37. gxf3 {[%clk 0:00:04.7]} 37...
Nf4 {[%clk 0:00:14.9]} 38. Kh2 {[%clk 0:00:04]} 38... Qd7 {[%clk 0:00:12.3]} 39.
Qxg5 {[%clk 0:00:02.8]} 39... e5 {[%clk 0:00:12.8]} 40. Qg4 {[%clk 0:00:02.5]}
40... Be6 {[%clk 0:00:12.4]} 41. Qg3 {[%clk 0:00:01.2]} 41... Bxh3 {[%clk
0:00:10.8]} 42. dxe5 {[%clk 0:00:01.7]} 42... dxe5 {[%clk 0:00:11]} 0-1

[Event "Late-Titled-Tuesday-Blitz-January-16-2024"]
[Site "Chess.com"]
[Date "2024.01.16"]
[Round "5"]
[White "tolimachess"]
[Black "Ajedrecista3000"]
[Result "0-1"]
[WhiteElo "2431"]
[BlackElo "2585"]
[TimeControl "180+1"]
[EndTime "14:53:44 PST"]
[Termination "Ajedrecista3000 won by checkmate"]

1. e4 {[%clk 0:02:55.7]} 1... e5 {[%clk 0:02:58.7]} 2. Nc3 {[%clk 0:02:55.3]}
2... Nf6 {[%clk 0:02:58.6]} 3. g3 {[%clk 0:02:55]} 3... Nc6 {[%clk 0:02:56.7]}
4. Bg2 {[%clk 0:02:55]} 4... Bc5 {[%clk 0:02:56.8]} 5. h3 {[%clk 0:02:54.5]}
5... O-O {[%clk 0:02:52.2]} 6. Nge2 {[%clk 0:02:47.4]} 6... a6 {[%clk
0:02:49.7]} 7. O-O {[%clk 0:02:47]} 7... d6 {[%clk 0:02:45.8]} 8. d3 {[%clk
0:02:46.8]} 8... Nd4 {[%clk 0:02:36.8]} 9. Kh2 {[%clk 0:02:43.9]} 9... b5 {[%clk
0:02:27.7]} 10. f4 {[%clk 0:02:43.1]} 10... b4 {[%clk 0:02:25.8]} 11. Nxd4
{[%clk 0:02:40]} 11... Bxd4 {[%clk 0:02:11.7]} 12. Ne2 {[%clk 0:02:36.3]} 12...
Bb6 {[%clk 0:02:10.9]} 13. c3 {[%clk 0:02:10.6]} 13... a5 {[%clk 0:02:04.5]} 14.
a3 {[%clk 0:02:01.1]} 14... bxc3 {[%clk 0:01:58.8]} 15. bxc3 {[%clk 0:02:02]}
15... Ba6 {[%clk 0:01:57.4]} 16. c4 {[%clk 0:02:01.2]} 16... Nd7 {[%clk
0:01:55.7]} 17. f5 {[%clk 0:01:56.6]} 17... Rb8 {[%clk 0:01:55.6]} 18. Bd2
{[%clk 0:01:53.7]} 18... Nc5 {[%clk 0:01:53.8]} 19. Qc2 {[%clk 0:01:53.8]} 19...
a4 {[%clk 0:01:52.2]} 20. Rab1 {[%clk 0:01:50.8]} 20... Nb3 {[%clk 0:01:51.9]}
21. h4 {[%clk 0:01:43.8]} 21... Bc5 {[%clk 0:01:50.1]} 22. Bc1 {[%clk
0:01:27.8]} 22... Bc8 {[%clk 0:01:36.2]} 23. Bg5 {[%clk 0:01:17]} 23... f6
{[%clk 0:01:34]} 24. Bc1 {[%clk 0:01:16.7]} 24... Bd7 {[%clk 0:01:28.8]} 25. Bb2
{[%clk 0:01:16.5]} 25... Qe7 {[%clk 0:01:21.9]} 26. Nc3 {[%clk 0:00:56.3]} 26...
Nd4 {[%clk 0:01:19.3]} 27. Qd1 {[%clk 0:00:54.3]} 27... Rb3 {[%clk 0:01:09.6]}
28. Nd5 {[%clk 0:00:53.4]} 28... Qd8 {[%clk 0:01:10.1]} 29. Bxd4 {[%clk
0:00:53.1]} 29... Rxb1 {[%clk 0:01:08.8]} 30. Qxb1 {[%clk 0:00:53.4]} 30... Bxd4
{[%clk 0:01:08.9]} 31. Qb7 {[%clk 0:00:47.4]} 31... c6 {[%clk 0:01:08.2]} 32.
Nb4 {[%clk 0:00:42.6]} 32... Qc8 {[%clk 0:01:08.5]} 33. Qxc8 {[%clk 0:00:36.5]}
33... Rxc8 {[%clk 0:01:09.4]} 34. Nc2 {[%clk 0:00:24.7]} 34... Rb8 {[%clk
0:00:57.7]} 35. Nxd4 {[%clk 0:00:19.9]} 35... exd4 {[%clk 0:00:58.6]} 36. c5
{[%clk 0:00:20.4]} 36... dxc5 {[%clk 0:00:57.7]} 37. Rc1 {[%clk 0:00:21.1]}
37... Rb3 {[%clk 0:00:56.1]} 38. Rxc5 {[%clk 0:00:21.6]} 38... Rxd3 {[%clk
0:00:56.1]} 39. Ra5 {[%clk 0:00:16.1]} 39... Rxa3 {[%clk 0:00:55.2]} 40. Ra8+
{[%clk 0:00:12]} 40... Kf7 {[%clk 0:00:54.5]} 41. Ra7 {[%clk 0:00:12.6]} 41...
Ke8 {[%clk 0:00:53.4]} 42. e5 {[%clk 0:00:13.3]} 42... fxe5 {[%clk 0:00:53.3]}
43. Ra8+ {[%clk 0:00:13.6]} 43... Ke7 {[%clk 0:00:53.5]} 44. Ra7 {[%clk
0:00:14.3]} 44... Kd6 {[%clk 0:00:53.5]} 45. Ra8 {[%clk 0:00:13.8]} 45... d3
{[%clk 0:00:45.5]} 46. Rg8 {[%clk 0:00:06.9]} 46... d2 {[%clk 0:00:44.9]} 47.
Rxg7 {[%clk 0:00:07.4]} 47... d1=Q {[%clk 0:00:44]} 48. f6 {[%clk 0:00:08]}
48... Be6 {[%clk 0:00:37.9]} 49. Re7 {[%clk 0:00:05.5]} 49... Qg4 {[%clk
0:00:35]} 50. Rg7 {[%clk 0:00:03.9]} 50... Rxg3 {[%clk 0:00:31.8]} 51. Rxg4
{[%clk 0:00:03.1]} 51... Rxg4 {[%clk 0:00:32.7]} 52. Bf3 {[%clk 0:00:03.1]}
52... Rf4 {[%clk 0:00:33]} 53. Bh5 {[%clk 0:00:03]} 53... Rxf6 {[%clk
0:00:33.1]} 54. Bd1 {[%clk 0:00:03.6]} 54... a3 {[%clk 0:00:33.9]} 55. Bc2
{[%clk 0:00:03.8]} 55... c5 {[%clk 0:00:34.4]} 56. Bxh7 {[%clk 0:00:04.5]} 56...
Rh6 {[%clk 0:00:34.3]} 57. Bb1 {[%clk 0:00:05]} 57... Rxh4+ {[%clk 0:00:34.8]}
58. Kg3 {[%clk 0:00:05.6]} 58... Rb4 {[%clk 0:00:35.7]} 59. Ba2 {[%clk
0:00:05.6]} 59... Bxa2 {[%clk 0:00:35.2]} 60. Kf2 {[%clk 0:00:06.1]} 60... Bd5
{[%clk 0:00:35.8]} 61. Ke3 {[%clk 0:00:06.9]} 61... a2 {[%clk 0:00:36.2]} 62.
Kd2 {[%clk 0:00:07.8]} 62... a1=Q {[%clk 0:00:35.2]} 63. Kc2 {[%clk 0:00:08.4]}
63... Qa2+ {[%clk 0:00:35.2]} 64. Kd3 {[%clk 0:00:09.3]} 64... Rb3# {[%clk
0:00:34.3]} 0-1